[Event "*** MasterClass Titled Tuesday Blitz"]
[Site "Chess.com"]
[Date "2017.10.03"]
[Round "5"]
[White "Mistheoretical"]
[Black "ehrenfeld"]
[Result "0-1"]
[WhiteElo "2198"]
[BlackElo "2335"]
[TimeControl "180+2"]
[EndTime "14:09:46 PDT"]
[Termination "ehrenfeld won by resignation"]

1. d4 {[%clk 0:03:01.9]} 1... Nf6 {[%clk 0:03:00.4]} 2. Bg5 {[%clk 0:03:02.7]}
2... e6 {[%clk 0:03:00.2]} 3. Nd2 {[%clk 0:03:03]} 3... d5 {[%clk 0:02:56.6]} 4.
e4 {[%clk 0:03:03.9]} 4... Be7 {[%clk 0:02:57]} 5. e5 {[%clk 0:03:04.6]} 5...
Nfd7 {[%clk 0:02:57.6]} 6. h4 {[%clk 0:03:06.2]} 6... c5 {[%clk 0:02:56.6]} 7.
c3 {[%clk 0:02:59.9]} 7... Nc6 {[%clk 0:02:57]} 8. Qg4 {[%clk 0:02:56.5]} 8...
f6 {[%clk 0:02:38.8]} 9. exf6 {[%clk 0:02:29.7]} 9... Nxf6 {[%clk 0:02:39.1]}
10. Bxf6 {[%clk 0:02:17.6]} 10... Bxf6 {[%clk 0:02:39.7]} 11. dxc5 {[%clk
0:02:08]} 11... O-O {[%clk 0:02:39.5]} 12. O-O-O {[%clk 0:01:46.6]} 12... Qa5
{[%clk 0:02:36.2]} 13. Kb1 {[%clk 0:01:26]} 13... Qxc5 {[%clk 0:02:36.7]} 14.
Bd3 {[%clk 0:01:11.8]} 14... Ne5 {[%clk 0:02:34.6]} 15. Qg3 {[%clk 0:01:04.2]}
15... Nxd3 {[%clk 0:02:33.5]} 16. Qxd3 {[%clk 0:01:06.1]} 16... Bd7 {[%clk
0:02:30.8]} 17. f4 {[%clk 0:00:49.4]} 17... e5 {[%clk 0:02:15.1]} 18. Nb3 {[%clk
0:00:42.3]} 18... Qc6 {[%clk 0:02:05.2]} 19. fxe5 {[%clk 0:00:20.4]} 19... Bxe5
{[%clk 0:02:05.5]} 20. Ka1 {[%clk 0:00:17]} 20... Bf5 {[%clk 0:01:59.5]} 21. Qd2
{[%clk 0:00:15.3]} 21... Be4 {[%clk 0:01:41.7]} 22. Nf3 {[%clk 0:00:14.8]} 22...
Bf4 {[%clk 0:01:40.9]} 23. Qd4 {[%clk 0:00:11.7]} 23... a5 {[%clk 0:01:36.1]}
24. Nbd2 {[%clk 0:00:09]} 24... Rae8 {[%clk 0:01:24.2]} 25. Rhe1 {[%clk
0:00:09.8]} 25... b5 {[%clk 0:01:18.4]} 26. Nxe4 {[%clk 0:00:07]} 26... dxe4
{[%clk 0:01:18.9]} 27. Ng5 {[%clk 0:00:08.6]} 27... e3 {[%clk 0:00:58.2]} 28.
Re2 {[%clk 0:00:04.9]} 28... h6 {[%clk 0:00:20.4]} 29. Nf3 {[%clk 0:00:04.7]}
29... Re4 {[%clk 0:00:18.3]} 30. Qd3 {[%clk 0:00:05.1]} 30... Rfe8 {[%clk
0:00:17.8]} 31. a3 {[%clk 0:00:06]} 31... a4 {[%clk 0:00:17]} 32. Qd5+ {[%clk
0:00:07]} 32... Qxd5 {[%clk 0:00:17.2]} 33. Rxd5 {[%clk 0:00:08.9]} 33... Rb8
{[%clk 0:00:13]} 34. Nd4 {[%clk 0:00:10.1]} 34... Bg3 {[%clk 0:00:12.4]} 35. h5
{[%clk 0:00:10]} 35... Rf8 {[%clk 0:00:12.9]} 36. Rxb5 {[%clk 0:00:09.1]} 36...
Rf1+ {[%clk 0:00:13.1]} 37. Ka2 {[%clk 0:00:10.2]} 37... Rf2 {[%clk 0:00:12.2]}
38. Rb8+ {[%clk 0:00:09]} 38... Kh7 {[%clk 0:00:12]} 39. Re1 {[%clk 0:00:05.5]}
39... e2 {[%clk 0:00:12.2]} 40. Rxe2 {[%clk 0:00:04.9]} 40... Rfxe2 {[%clk
0:00:12.8]} 41. Nxe2 {[%clk 0:00:06.8]} 41... Rxe2 {[%clk 0:00:13.9]} 42. Rb4
{[%clk 0:00:07.5]} 42... Be5 {[%clk 0:00:14.6]} 43. Kb1 {[%clk 0:00:07.8]} 43...
Re1+ {[%clk 0:00:15.3]} 44. Kc2 {[%clk 0:00:08.9]} 44... Re2+ {[%clk 0:00:16.5]}
45. Kd3 {[%clk 0:00:10.4]} 45... Rxg2 {[%clk 0:00:16.5]} 46. b3 {[%clk
0:00:05.8]} 46... axb3 {[%clk 0:00:16.8]} 47. Rxb3 {[%clk 0:00:06.8]} 47... Rh2
{[%clk 0:00:17.4]} 48. Rb5 {[%clk 0:00:05.5]} 48... Rh3+ {[%clk 0:00:17.5]} 49.
Ke4 {[%clk 0:00:03.6]} 49... Bxc3 {[%clk 0:00:17.8]} 50. a4 {[%clk 0:00:04.7]}
50... Rh4+ {[%clk 0:00:17.8]} 51. Kd3 {[%clk 0:00:05]} 51... Bf6 {[%clk
0:00:17.3]} 52. a5 {[%clk 0:00:05.7]} 52... Ra4 {[%clk 0:00:17.8]} 53. Ke3
{[%clk 0:00:06.2]} 53... Bd8 {[%clk 0:00:18.5]} 54. Rb8 {[%clk 0:00:03.3]} 54...
Rxa5 {[%clk 0:00:17.7]} 55. Rxd8 {[%clk 0:00:04]} 55... Rxh5 {[%clk 0:00:18.4]}
56. Kf3 {[%clk 0:00:05.9]} 56... Rg5 {[%clk 0:00:19.5]} 57. Rd7 {[%clk
0:00:06.7]} 57... h5 {[%clk 0:00:20.5]} 58. Rd6 {[%clk 0:00:07.1]} 58... g6
{[%clk 0:00:21]} 59. Kf4 {[%clk 0:00:07.8]} 59... Rg4+ {[%clk 0:00:21.9]} 60.
Kf3 {[%clk 0:00:09.2]} 60... Kh6 {[%clk 0:00:23.2]} 61. Rd5 {[%clk 0:00:10.2]}
61... Rg1 {[%clk 0:00:22.4]} 62. Kf2 {[%clk 0:00:11.6]} 62... Rg5 {[%clk
0:00:22.9]} 63. Rd8 {[%clk 0:00:11.5]} 63... Rg4 {[%clk 0:00:23.9]} 64. Rd5
{[%clk 0:00:11.8]} 64... h4 {[%clk 0:00:24.9]} 65. Ra5 {[%clk 0:00:11.2]} 65...
g5 {[%clk 0:00:24.1]} 66. Rb5 {[%clk 0:00:10.6]} 66... Rg3 {[%clk 0:00:25.1]}
67. Ra5 {[%clk 0:00:10.9]} 67... Kh5 {[%clk 0:00:25.9]} 68. Ra4 {[%clk
0:00:12.3]} 68... Rg4 {[%clk 0:00:26.2]} 69. Ra5 {[%clk 0:00:10.9]} 69... Rb4
{[%clk 0:00:26.8]} 70. Kg2 {[%clk 0:00:11.3]} 70... Kg4 {[%clk 0:00:27.7]} 71.
Rc5 {[%clk 0:00:10.9]} 71... Rb2+ {[%clk 0:00:28.5]} 72. Kf1 {[%clk 0:00:12]}
72... h3 {[%clk 0:00:29.6]} 73. Kg1 {[%clk 0:00:09.4]} 73... Kh4 {[%clk
0:00:29.8]} 74. Rc8 {[%clk 0:00:08.4]} 74... g4 {[%clk 0:00:30.4]} 75. Rh8+
{[%clk 0:00:09]} 75... Kg3 {[%clk 0:00:31]} 76. Kf1 {[%clk 0:00:09.6]} 76...
Rb1+ {[%clk 0:00:32]} 77. Ke2 {[%clk 0:00:10.7]} 77... h2 {[%clk 0:00:33.3]} 0-1

[Event "*** MasterClass Titled Tuesday Blitz"]
[Site "Chess.com"]
[Date "2017.10.03"]
[Round "6"]
[White "peteseeger"]
[Black "PulpanJ"]
[Result "0-1"]
[WhiteElo "2138"]
[BlackElo "2336"]
[TimeControl "180+2"]
[EndTime "14:18:54 PDT"]
[Termination "PulpanJ won by resignation"]

1. e4 {[%clk 0:02:52.2]} 1... c5 {[%clk 0:02:54.6]} 2. Nf3 {[%clk 0:02:52.9]}
2... d6 {[%clk 0:02:54.7]} 3. Bb5+ {[%clk 0:02:53.2]} 3... Bd7 {[%clk
0:02:55.3]} 4. Bxd7+ {[%clk 0:02:53.3]} 4... Nxd7 {[%clk 0:02:48.2]} 5. O-O
{[%clk 0:02:52.6]} 5... Ngf6 {[%clk 0:02:43.7]} 6. Qe2 {[%clk 0:02:52.8]} 6...
e6 {[%clk 0:02:35]} 7. b3 {[%clk 0:02:52.7]} 7... Be7 {[%clk 0:02:34.9]} 8. Bb2
{[%clk 0:02:53.5]} 8... O-O {[%clk 0:02:28.2]} 9. d4 {[%clk 0:02:53.6]} 9...
cxd4 {[%clk 0:02:30.1]} 10. Nxd4 {[%clk 0:02:53.9]} 10... Rc8 {[%clk 0:02:30.5]}
11. c4 {[%clk 0:02:54.6]} 11... a6 {[%clk 0:02:31]} 12. Nc3 {[%clk 0:02:55.1]}
12... Qa5 {[%clk 0:02:31]} 13. Kh1 {[%clk 0:02:42.6]} 13... Rfe8 {[%clk
0:02:31.4]} 14. f4 {[%clk 0:02:42.3]} 14... Qh5 {[%clk 0:02:13.4]} 15. Qf2
{[%clk 0:02:34.3]} 15... Nc5 {[%clk 0:02:10.7]} 16. Qf3 {[%clk 0:02:04.6]} 16...
Qxf3 {[%clk 0:02:04.1]} 17. gxf3 {[%clk 0:02:04.5]} 17... Nd3 {[%clk 0:02:02.7]}
18. Ba3 {[%clk 0:02:00.7]} 18... Nxf4 {[%clk 0:02:00.6]} 0-1

[Event "*** MasterClass Titled Tuesday Blitz"]
[Site "Chess.com"]
[Date "2017.10.03"]
[Round "6"]
[White "Msb2"]
[Black "fidetrainerNET"]
[Result "1-0"]
[WhiteElo "2618"]
[BlackElo "2076"]
[TimeControl "180+2"]
[EndTime "14:20:12 PDT"]
[Termination "Msb2 won by checkmate"]

1. d4 {[%clk 0:03:01.9]} 1... Nf6 {[%clk 0:02:57.3]} 2. c4 {[%clk 0:03:02.1]}
2... c5 {[%clk 0:02:57.7]} 3. d5 {[%clk 0:03:03.2]} 3... b5 {[%clk 0:02:59.3]}
4. cxb5 {[%clk 0:03:05.1]} 4... a6 {[%clk 0:03:00.2]} 5. bxa6 {[%clk 0:03:07]}
5... g6 {[%clk 0:02:58.7]} 6. Nc3 {[%clk 0:03:08.9]} 6... Bxa6 {[%clk
0:02:59.6]} 7. e4 {[%clk 0:03:09.9]} 7... Bxf1 {[%clk 0:02:57.5]} 8. Kxf1 {[%clk
0:03:11.8]} 8... d6 {[%clk 0:02:58.5]} 9. g3 {[%clk 0:03:13.4]} 9... Bg7 {[%clk
0:02:59.6]} 10. Kg2 {[%clk 0:03:15.1]} 10... O-O {[%clk 0:03:00.7]} 11. Nf3
{[%clk 0:03:16.7]} 11... Nbd7 {[%clk 0:03:01.3]} 12. a4 {[%clk 0:03:18.3]} 12...
Ng4 {[%clk 0:03:01.6]} 13. Qe2 {[%clk 0:03:17.7]} 13... Qa5 {[%clk 0:03:00.7]}
14. Nd2 {[%clk 0:03:18.7]} 14... h5 {[%clk 0:02:57.3]} 15. h3 {[%clk 0:03:19.2]}
15... Nh6 {[%clk 0:02:57.8]} 16. Nc4 {[%clk 0:03:19.9]} 16... Qa6 {[%clk
0:02:58.7]} 17. Nb5 {[%clk 0:03:17.3]} 17... Rfc8 {[%clk 0:02:56.7]} 18. Bg5
{[%clk 0:03:10.2]} 18... f6 {[%clk 0:02:56.3]} 19. Bxh6 {[%clk 0:03:07.6]} 19...
Bxh6 {[%clk 0:02:56]} 20. h4 {[%clk 0:03:09.2]} 20... Nb6 {[%clk 0:02:46.9]} 21.
Nxb6 {[%clk 0:03:09.7]} 21... Qxb6 {[%clk 0:02:46.9]} 22. g4 {[%clk 0:03:11.1]}
22... hxg4 {[%clk 0:02:43.9]} 23. Qxg4 {[%clk 0:03:13]} 23... Kg7 {[%clk
0:02:40.8]} 24. h5 {[%clk 0:03:12.9]} 24... Rh8 {[%clk 0:02:19.9]} 25. Qxg6+
{[%clk 0:03:10]} 25... Kf8 {[%clk 0:02:18.9]} 26. Kf3 {[%clk 0:03:11.9]} 26...
Qa5 {[%clk 0:02:12.5]} 27. Rag1 {[%clk 0:03:00.8]} 27... Rb8 {[%clk 0:02:10.9]}
28. Rg3 {[%clk 0:02:56.5]} 28... Qxa4 {[%clk 0:02:11.6]} 29. Nc7 {[%clk
0:02:55.5]} 29... Rb3+ {[%clk 0:02:04.8]} 30. Kg2 {[%clk 0:02:56.8]} 30... Rxg3+
{[%clk 0:02:03.3]} 31. fxg3 {[%clk 0:02:56.4]} 31... e5 {[%clk 0:01:08.4]} 32.
Qxf6+ {[%clk 0:02:56.8]} 32... Kg8 {[%clk 0:01:06.3]} 33. Qg6+ {[%clk
0:02:58.2]} 33... Kf8 {[%clk 0:01:06]} 34. Qxd6+ {[%clk 0:02:59]} 34... Kg8
{[%clk 0:01:05.8]} 35. Qe6+ {[%clk 0:03:00]} 35... Kf8 {[%clk 0:01:06.1]} 36.
Rf1+ {[%clk 0:02:59.8]} 36... Kg7 {[%clk 0:01:02.6]} 37. Qg6# {[%clk 0:03:00.3]}
1-0

[Event "*** MasterClass Titled Tuesday Blitz"]
[Site "Chess.com"]
[Date "2017.10.03"]
[Round "6"]
[White "oskariot"]
[Black "JammyDodger91"]
[Result "1-0"]
[WhiteElo "2490"]
[BlackElo "2406"]
[TimeControl "180+2"]
[EndTime "14:21:09 PDT"]
[Termination "oskariot won by resignation"]

1. c4 {[%clk 0:03:01.9]} 1... Nf6 {[%clk 0:03:00.7]} 2. g3 {[%clk 0:03:03.4]}
2... g6 {[%clk 0:03:00.1]} 3. Bg2 {[%clk 0:03:05.2]} 3... Bg7 {[%clk 0:03:01.8]}
4. Nc3 {[%clk 0:03:07.1]} 4... O-O {[%clk 0:03:03.3]} 5. e4 {[%clk 0:03:09]}
5... d6 {[%clk 0:03:05]} 6. Nge2 {[%clk 0:03:10.4]} 6... e5 {[%clk 0:03:04]} 7.
O-O {[%clk 0:03:11.4]} 7... Nc6 {[%clk 0:03:05.2]} 8. h3 {[%clk 0:03:11.7]} 8...
Nd7 {[%clk 0:03:02.7]} 9. d3 {[%clk 0:03:12.1]} 9... Nc5 {[%clk 0:03:03.2]} 10.
f4 {[%clk 0:03:13.6]} 10... exf4 {[%clk 0:03:03.6]} 11. d4 {[%clk 0:03:07.3]}
11... f3 {[%clk 0:02:58.3]} 12. Rxf3 {[%clk 0:03:02.7]} 12... Nd7 {[%clk
0:02:47.3]} 13. Be3 {[%clk 0:03:01.8]} 13... Nb6 {[%clk 0:02:46.4]} 14. b3
{[%clk 0:03:01]} 14... f5 {[%clk 0:02:47.4]} 15. exf5 {[%clk 0:02:54.8]} 15...
Bxf5 {[%clk 0:02:47.7]} 16. Qd2 {[%clk 0:02:51.5]} 16... a5 {[%clk 0:02:18.3]}
17. Raf1 {[%clk 0:02:51.6]} 17... a4 {[%clk 0:02:17.5]} 18. g4 {[%clk 0:02:42]}
18... Bd7 {[%clk 0:02:17.9]} 19. Rxf8+ {[%clk 0:02:42]} 19... Bxf8 {[%clk
0:02:18.2]} 20. Ng3 {[%clk 0:02:43.2]} 20... axb3 {[%clk 0:02:13.7]} 21. axb3
{[%clk 0:02:38.4]} 21... Bg7 {[%clk 0:02:09.1]} 22. c5 {[%clk 0:01:58.2]} 22...
Nc8 {[%clk 0:01:55.3]} 23. Bg5 {[%clk 0:01:57.3]} 23... Qe8 {[%clk 0:01:42]} 24.
Nd5 {[%clk 0:01:56.2]} 24... Bxd4+ {[%clk 0:01:15.8]} 25. Qxd4 {[%clk
0:01:03.8]} 25... Nxd4 {[%clk 0:01:17.7]} 26. Nf6+ {[%clk 0:01:05]} 26... Kg7
{[%clk 0:01:15.6]} 27. Nxe8+ {[%clk 0:01:04.9]} 1-0

[Event "*** MasterClass Titled Tuesday Blitz"]
[Site "Chess.com"]
[Date "2017.10.03"]
[Round "6"]
[White "catalin009"]
[Black "Masterbeaterr"]
[Result "1-0"]
[WhiteElo "2364"]
[BlackElo "2281"]
[TimeControl "180+2"]
[EndTime "14:21:48 PDT"]
[Termination "catalin009 won by resignation"]

1. Nf3 {[%clk 0:02:58.4]} 1... g6 {[%clk 0:03:01.9]} 2. g3 {[%clk 0:02:55.9]}
2... Bg7 {[%clk 0:03:03.8]} 3. Bg2 {[%clk 0:02:57.6]} 3... d5 {[%clk 0:03:01.4]}
4. O-O {[%clk 0:02:58.2]} 4... c6 {[%clk 0:03:02.5]} 5. d3 {[%clk 0:02:55.8]}
5... Nf6 {[%clk 0:03:03.4]} 6. Nbd2 {[%clk 0:02:54.3]} 6... O-O {[%clk
0:03:04.3]} 7. e4 {[%clk 0:02:55.6]} 7... Bg4 {[%clk 0:03:01.7]} 8. h3 {[%clk
0:02:54.6]} 8... Bxf3 {[%clk 0:03:02.7]} 9. Qxf3 {[%clk 0:02:56.1]} 9... e6
{[%clk 0:03:03.7]} 10. Re1 {[%clk 0:02:54.4]} 10... Nbd7 {[%clk 0:03:01]} 11.
Nb3 {[%clk 0:02:30.8]} 11... dxe4 {[%clk 0:02:55.6]} 12. dxe4 {[%clk 0:02:30.8]}
12... Ne5 {[%clk 0:02:57.1]} 13. Qe2 {[%clk 0:02:30.3]} 13... b5 {[%clk
0:02:48.1]} 14. Nc5 {[%clk 0:02:18.2]} 14... Qe7 {[%clk 0:02:46.3]} 15. Nd3
{[%clk 0:02:06]} 15... Nxd3 {[%clk 0:02:36.1]} 16. cxd3 {[%clk 0:01:59.6]} 16...
Rfd8 {[%clk 0:02:34.8]} 17. Be3 {[%clk 0:01:57.9]} 17... Nd7 {[%clk 0:02:13.5]}
18. Rac1 {[%clk 0:01:27.6]} 18... Rdc8 {[%clk 0:02:03]} 19. d4 {[%clk
0:01:19.9]} 19... Nb6 {[%clk 0:02:03.1]} 20. b3 {[%clk 0:01:20]} 20... Qb4
{[%clk 0:01:59]} 21. Red1 {[%clk 0:01:00.3]} 21... Rd8 {[%clk 0:01:37.7]} 22.
Rxc6 {[%clk 0:00:52.7]} 22... Bxd4 {[%clk 0:01:37.4]} 23. a3 {[%clk 0:00:52.8]}
23... Qxb3 {[%clk 0:01:27.5]} 24. Rxd4 {[%clk 0:00:48.7]} 24... Qxa3 {[%clk
0:01:22.7]} 25. Qxb5 {[%clk 0:00:32.9]} 25... Qa1+ {[%clk 0:01:21.9]} 26. Rc1
{[%clk 0:00:31.6]} 26... Qxc1+ {[%clk 0:01:17.9]} 27. Bxc1 {[%clk 0:00:33.5]}
27... Rxd4 {[%clk 0:01:19.3]} 28. Bb2 {[%clk 0:00:35]} 28... Rd2 {[%clk
0:01:18.9]} 29. Qe5 {[%clk 0:00:33.9]} 1-0

[Event "*** MasterClass Titled Tuesday Blitz"]
[Site "Chess.com"]
[Date "2017.10.03"]
[Round "6"]
[White "BillCoe"]
[Black "Daniela_Movileanu"]
[Result "1-0"]
[WhiteElo "1968"]
[BlackElo "2084"]
[TimeControl "180+2"]
[EndTime "14:22:23 PDT"]
[Termination "BillCoe won by resignation"]

1. e4 {[%clk 0:03:01.9]} 1... c5 {[%clk 0:03:00.6]} 2. Nf3 {[%clk 0:03:02.7]}
2... d6 {[%clk 0:03:02]} 3. d4 {[%clk 0:03:03.8]} 3... cxd4 {[%clk 0:03:03]} 4.
Nxd4 {[%clk 0:03:05.3]} 4... Nf6 {[%clk 0:03:04.6]} 5. Nc3 {[%clk 0:03:06.5]}
5... a6 {[%clk 0:03:05.6]} 6. h3 {[%clk 0:03:06.7]} 6... e5 {[%clk 0:03:01.5]}
7. Nde2 {[%clk 0:03:05.6]} 7... Be6 {[%clk 0:03:02.1]} 8. g4 {[%clk 0:02:59.6]}
8... h5 {[%clk 0:02:59.3]} 9. g5 {[%clk 0:02:57.5]} 9... Nfd7 {[%clk 0:02:57.3]}
10. h4 {[%clk 0:02:57.8]} 10... Nc6 {[%clk 0:02:55.3]} 11. Be3 {[%clk
0:02:50.7]} 11... Be7 {[%clk 0:02:50.8]} 12. Bh3 {[%clk 0:02:41.7]} 12... Qa5
{[%clk 0:02:40.5]} 13. Bxe6 {[%clk 0:02:29.9]} 13... fxe6 {[%clk 0:02:42.4]} 14.
O-O {[%clk 0:02:23.9]} 14... Nf8 {[%clk 0:02:25.1]} 15. f4 {[%clk 0:02:20.6]}
15... exf4 {[%clk 0:02:24.1]} 16. Nxf4 {[%clk 0:02:18.6]} 16... Ne5 {[%clk
0:02:19.3]} 17. Qe2 {[%clk 0:01:56.8]} 17... Ng4 {[%clk 0:02:17.6]} 18. Rae1
{[%clk 0:01:42.1]} 18... Nxe3 {[%clk 0:02:16.4]} 19. Qxe3 {[%clk 0:01:42.5]}
19... d5 {[%clk 0:02:14.2]} 20. Qf3 {[%clk 0:01:39.2]} 20... d4 {[%clk
0:02:11.7]} 21. Nce2 {[%clk 0:01:30.4]} 21... O-O-O {[%clk 0:02:10.6]} 22. e5
{[%clk 0:01:15.3]} 22... Qb6 {[%clk 0:01:52.2]} 23. Nd3 {[%clk 0:01:09.7]} 23...
Nd7 {[%clk 0:01:37.7]} 24. Qf7 {[%clk 0:01:01.9]} 24... Rde8 {[%clk 0:01:37.7]}
25. Nef4 {[%clk 0:00:56.2]} 25... Nc5 {[%clk 0:01:36.4]} 26. Ng6 {[%clk
0:00:48.8]} 26... Bd8 {[%clk 0:01:08.1]} 27. Nxh8 {[%clk 0:00:46.1]} 27... Rxh8
{[%clk 0:01:10]} 28. Nxc5 {[%clk 0:00:44.3]} 28... Qxc5 {[%clk 0:01:09.7]} 29.
Qxe6+ {[%clk 0:00:45.3]} 29... Kb8 {[%clk 0:01:09.6]} 30. Qd6+ {[%clk
0:00:45.8]} 30... Qxd6 {[%clk 0:01:10.1]} 31. exd6 {[%clk 0:00:47.7]} 31... Kc8
{[%clk 0:01:11.3]} 32. Rf7 {[%clk 0:00:47.6]} 32... g6 {[%clk 0:01:10.7]} 33.
d7+ {[%clk 0:00:45.8]} 33... Kc7 {[%clk 0:01:11]} 34. Re8 {[%clk 0:00:46.8]}
34... Bxg5 {[%clk 0:01:06.5]} 35. hxg5 {[%clk 0:00:43.7]} 1-0

[Event "*** MasterClass Titled Tuesday Blitz"]
[Site "Chess.com"]
[Date "2017.10.03"]
[Round "6"]
[White "tigra"]
[Black "Diwi89"]
[Result "1-0"]
[WhiteElo "2660"]
[BlackElo "2537"]
[TimeControl "180+2"]
[EndTime "14:22:37 PDT"]
[Termination "tigra won by resignation"]

1. e4 {[%clk 0:03:01.9]} 1... c5 {[%clk 0:02:57.6]} 2. Nf3 {[%clk 0:03:02.6]}
2... Nc6 {[%clk 0:02:57.6]} 3. d4 {[%clk 0:02:59.1]} 3... cxd4 {[%clk
0:02:59.5]} 4. Nxd4 {[%clk 0:03:00.8]} 4... Nf6 {[%clk 0:02:59.6]} 5. Nc3 {[%clk
0:03:01]} 5... e5 {[%clk 0:03:00.7]} 6. Ndb5 {[%clk 0:03:02]} 6... d6 {[%clk
0:02:59.6]} 7. Bg5 {[%clk 0:03:02.6]} 7... a6 {[%clk 0:03:00.7]} 8. Bxf6 {[%clk
0:03:02.9]} 8... gxf6 {[%clk 0:03:00.9]} 9. Na3 {[%clk 0:03:04.8]} 9... b5
{[%clk 0:02:54.7]} 10. Nd5 {[%clk 0:03:05.4]} 10... f5 {[%clk 0:02:55.1]} 11.
Bxb5 {[%clk 0:02:56.2]} 11... axb5 {[%clk 0:02:53.6]} 12. Nxb5 {[%clk
0:02:58.1]} 12... Ra4 {[%clk 0:02:52.7]} 13. Nbc7+ {[%clk 0:02:59]} 13... Kd7
{[%clk 0:02:53.3]} 14. Qh5 {[%clk 0:02:59.8]} 14... Rxe4+ {[%clk 0:02:50.9]} 15.
Kf1 {[%clk 0:03:00.8]} 15... Ne7 {[%clk 0:02:51.3]} 16. Qxf7 {[%clk 0:02:58.7]}
16... Kc6 {[%clk 0:02:48.3]} 17. Rd1 {[%clk 0:02:56.3]} 17... Nxd5 {[%clk
0:02:42.9]} 18. Nxd5 {[%clk 0:02:56.4]} 18... Ba6+ {[%clk 0:02:42.2]} 19. Kg1
{[%clk 0:02:56.9]} 19... Qd7 {[%clk 0:02:41.7]} 20. Qh5 {[%clk 0:02:46.5]} 20...
Be2 {[%clk 0:02:36.3]} 21. Nb4+ {[%clk 0:02:23.8]} 21... Kb7 {[%clk 0:02:15.6]}
22. Qh3 {[%clk 0:02:24.3]} 22... Rxb4 {[%clk 0:02:15.5]} 23. Re1 {[%clk
0:02:22.4]} 23... Bb5 {[%clk 0:02:13.5]} 24. b3 {[%clk 0:02:18.7]} 24... Bc6
{[%clk 0:02:13]} 25. Qc3 {[%clk 0:02:08.5]} 25... d5 {[%clk 0:02:01.1]} 26. Qxe5
{[%clk 0:01:58.6]} 26... Rg8 {[%clk 0:01:59.5]} 27. f3 {[%clk 0:01:31]} 27...
Bc5+ {[%clk 0:01:58.9]} 28. Kf1 {[%clk 0:01:32]} 28... Bd4 {[%clk 0:01:56.6]}
29. Qe7 {[%clk 0:01:23]} 29... Re8 {[%clk 0:01:53.3]} 30. Qxb4+ {[%clk
0:01:22.6]} 30... Bb6 {[%clk 0:01:53.8]} 31. a4 {[%clk 0:01:15]} 31... Ka7
{[%clk 0:01:27.6]} 32. a5 {[%clk 0:01:03.5]} 32... Rxe1+ {[%clk 0:01:26]} 33.
Kxe1 {[%clk 0:01:04.2]} 33... Be3 {[%clk 0:01:27]} 34. Kd1 {[%clk 0:01:01.9]}
34... f4 {[%clk 0:01:26.9]} 35. Re1 {[%clk 0:01:00.3]} 35... Ka8 {[%clk
0:01:15.4]} 36. Qf8+ {[%clk 0:00:52.3]} 36... Ka7 {[%clk 0:01:16.2]} 37. c3
{[%clk 0:00:42.6]} 37... d4 {[%clk 0:01:16.9]} 38. Qc5+ {[%clk 0:00:41.7]} 38...
Ka8 {[%clk 0:01:18.1]} 39. cxd4 {[%clk 0:00:41.2]} 39... Bxd4 {[%clk 0:01:15.7]}
40. Qf8+ {[%clk 0:00:41.5]} 1-0

[Event "*** MasterClass Titled Tuesday Blitz"]
[Site "Chess.com"]
[Date "2017.10.03"]
[Round "6"]
[White "PowerThinking2650"]
[Black "JosephRyan"]
[Result "1-0"]
[WhiteElo "2145"]
[BlackElo "2215"]
[TimeControl "180+2"]
[EndTime "14:22:41 PDT"]
[Termination "PowerThinking2650 won by checkmate"]

1. e4 {[%clk 0:03:01.9]} 1... c6 {[%clk 0:03:00.3]} 2. d4 {[%clk 0:03:01.3]}
2... d5 {[%clk 0:03:01.4]} 3. exd5 {[%clk 0:03:00.4]} 3... cxd5 {[%clk
0:03:02.2]} 4. Bd3 {[%clk 0:02:56]} 4... Nc6 {[%clk 0:03:02]} 5. c3 {[%clk
0:02:56.2]} 5... Nf6 {[%clk 0:03:02.8]} 6. Nf3 {[%clk 0:02:53.7]} 6... Bg4
{[%clk 0:03:00.8]} 7. h3 {[%clk 0:02:49.8]} 7... Bh5 {[%clk 0:03:00.9]} 8. Bf4
{[%clk 0:02:50.1]} 8... e6 {[%clk 0:03:01.3]} 9. Nbd2 {[%clk 0:02:50.6]} 9...
Bd6 {[%clk 0:03:01.6]} 10. Bxd6 {[%clk 0:02:47.7]} 10... Qxd6 {[%clk 0:03:03.5]}
11. O-O {[%clk 0:02:48.6]} 11... O-O {[%clk 0:03:03.8]} 12. Qe2 {[%clk
0:02:42.4]} 12... a6 {[%clk 0:02:50.4]} 13. Rfe1 {[%clk 0:02:38.9]} 13... b5
{[%clk 0:02:49.2]} 14. b4 {[%clk 0:02:38.6]} 14... Bxf3 {[%clk 0:02:36.2]} 15.
Nxf3 {[%clk 0:02:35.2]} 15... a5 {[%clk 0:02:22.5]} 16. a3 {[%clk 0:02:32.7]}
16... axb4 {[%clk 0:02:20.3]} 17. axb4 {[%clk 0:02:32.2]} 17... Rab8 {[%clk
0:02:17.9]} 18. Bxb5 {[%clk 0:02:31.3]} 18... Ne7 {[%clk 0:02:14.8]} 19. Bd3
{[%clk 0:02:24.3]} 19... Rfc8 {[%clk 0:02:13.8]} 20. Ra3 {[%clk 0:02:22.2]}
20... Rc7 {[%clk 0:02:00.3]} 21. Ne5 {[%clk 0:01:51.7]} 21... Nd7 {[%clk
0:01:53.9]} 22. Ra6 {[%clk 0:01:48.5]} 22... Nb6 {[%clk 0:01:40.7]} 23. Bxh7+
{[%clk 0:01:24.3]} 23... Kf8 {[%clk 0:01:30.1]} 24. Qf3 {[%clk 0:01:08.6]} 24...
f6 {[%clk 0:01:25.8]} 25. Ng6+ {[%clk 0:00:52.8]} 25... Nxg6 {[%clk 0:01:26.2]}
26. Bxg6 {[%clk 0:00:53.9]} 26... Rbc8 {[%clk 0:01:22.9]} 27. Qh5 {[%clk
0:00:53]} 27... Rxc3 {[%clk 0:00:55.5]} 28. Qh8+ {[%clk 0:00:47.3]} 28... Ke7
{[%clk 0:00:56.7]} 29. Qxg7+ {[%clk 0:00:48.2]} 29... Kd8 {[%clk 0:00:57.9]} 30.
Ra7 {[%clk 0:00:45]} 30... R8c7 {[%clk 0:00:44.7]} 31. Qg8+ {[%clk 0:00:29.1]}
31... Kd7 {[%clk 0:00:44]} 32. Qe8# {[%clk 0:00:29.8]} 1-0